fUST/lending_fUST_20240407
["ID","MTS","AMOUNT","RATE_DAILY","PERIOD"]
[321721368,1712457049663,-432.174719,0.00026712,2]
[321721369,1712457049673,-993.97,0.0002672,2]
[321721370,1712457049681,-570.13,0.0002673,2]
[321721371,1712457049690,-338.99872426,0.00026929,3]
[321721372,1712457049700,-3874.25,0.00026973,2]
[321721373,1712457049709,-1027.64,0.00026973,2]
[321721374,1712457049718,-500.0,0.00026973,2]
[321721375,1712457049727,-621.84,0.00026973,2]
[321721376,1712457049736,-804.2,0.00026973,2]
[321721377,1712457049746,-500.0,0.00026973,2]
[321721378,1712457049755,-942.47,0.00026973,2]
[321721379,1712457049765,-807.52,0.00026973,2]
[321721380,1712457049774,-1043.72,0.00026973,2]
[321721381,1712457049783,-733.24,0.00026973,2]
[321721382,1712457049792,-677.53,0.00026973,2]
[321721383,1712457049802,-500.0,0.00026974,2]
[321721384,1712457049811,-199.024765,0.00026974,2]
[321721385,1712457049820,-2975.0,0.00026974,2]
[321721386,1712457049829,-993.97,0.00026994,2]
[321721387,1712457049838,-1572.33263983,0.00027,2]
[321721388,1712457049847,-570.13,0.00027004,2]
[321721389,1712457049857,-587.0,0.00027097,2]
[321721390,1712457049866,-154.0,0.00027185,2]
[321721391,1712457049875,-3874.25,0.00027247,2]
[321721392,1712457049885,-1027.64,0.00027247,2]
[321721393,1712457049894,-500.0,0.00027247,2]
[321721394,1712457049903,-621.84,0.00027247,2]
[321721395,1712457049913,-804.2,0.00027247,2]
[321721396,1712457049922,-500.0,0.00027247,2]
[321721397,1712457049930,-942.47,0.00027247,2]
[321721398,1712457049940,-807.52,0.00027247,2]
[321721399,1712457049949,-1043.72,0.00027247,2]
[321721400,1712457049958,-733.24,0.00027247,2]
[321721401,1712457049966,-677.53,0.00027247,2]
[321721402,1712457049976,-500.0,0.00027248,2]
[321721403,1712457049985,-2975.0,0.00027248,2]
[321721404,1712457049994,-993.97,0.00027268,2]
[321721405,1712457050003,-570.13,0.00027278,2]
[321721406,1712457050013,-1000.0,0.00027397,7]
[321721407,1712457050022,-1000.0,0.00027397,7]
[321721408,1712457050031,-1000.0,0.00027397,7]
[321721409,1712457050040,-1000.0,0.00027397,7]
[321721410,1712457050050,-1000.0,0.00027397,7]
[321721411,1712457050059,-1000.0,0.00027397,7]
[321721412,1712457050068,-947.83857281,0.00027397,7]
[321721413,1712457050077,-500.0,0.00027397,2]
[321721414,1712457050086,-500.0,0.00027397,2]
[321721415,1712457050095,-500.0,0.00027397,2]
[321721416,1712457050104,-513.296272,0.00027397,2]
[321721417,1712457050114,-854.268801,0.00027397,2]
[321721418,1712457050123,-854.268801,0.00027397,2]
[321721419,1712457050132,-854.268801,0.00027397,2]
[321721420,1712457050142,-854.268801,0.00027397,2]
[321721421,1712457050151,-854.268801,0.00027397,2]
[321721422,1712457050160,-854.268801,0.00027397,2]
[321721423,1712457050170,-854.268801,0.00027397,2]
[321721424,1712457050180,-854.268801,0.00027397,2]
[321721425,1712457050189,-854.268801,0.00027397,2]
[321721426,1712457050199,-854.268801,0.00027397,2]
[321721427,1712457050207,-854.268801,0.00027397,2]
[321721428,1712457050217,-854.268801,0.00027397,2]
[321721429,1712457050226,-854.268801,0.00027397,2]
[321721430,1712457050235,-854.268801,0.00027397,2]
[321721431,1712457050244,-854.268801,0.00027397,2]
[321721432,1712457050253,-854.268801,0.00027397,2]
[321721433,1712457050262,-43136.23168755,0.000275,2]
[321721434,1712457050272,-798.86580996,0.000275,17]
[321721435,1712457050281,-854.268801,0.000275,2]
[321721436,1712457050290,-854.268801,0.000275,2]
[321721437,1712457050299,-3874.25,0.00027521,2]
[321721438,1712457050308,-112.20415006,0.00027521,2]
[321721443,1712457517678,-2000.0,0.00031,30]
[321721729,1712459438724,-562.48815638,0.00024346,2]
[321721730,1712459438733,-469.76688052,0.00024347,2]
[321721731,1712459438743,-407.48657465,0.00024347,2]
[321721732,1712459438752,-155.00155002,0.00024347,2]
[321721733,1712459438761,-349.08683843,0.00025135,2]
[321721777,1712460631962,-327.72494088,0.00023014,2]
[321721778,1712460631974,-4934.28274342,0.00023014,2]
[321721779,1712460633139,1004.57954939,0.00020914,2]
[321721781,1712460637899,-3694.50800895,0.00023014,2]
[321721782,1712460637909,-300.0,0.00023015,2]
[321721783,1712460637919,-3663.65357748,0.00023015,2]
[321721784,1712460637929,-888.83078072,0.00023018,2]
[321721785,1712460637939,-420.0,0.00024984,2]
[321721786,1712460637949,-155.00155002,0.00025135,2]
[321721787,1712460637958,-380.0,0.00025581,2]
[321721788,1712460637967,-221.1715878,0.00025668,2]
[321721789,1712460637976,-237.89550104,0.00025877,2]
[321721790,1712460637986,-1004.57954939,0.00025914,2]
[321721791,1712460637995,-202.6555302,0.00026438,2]
[321721792,1712460638006,-153.0,0.00026438,2]
[321721793,1712460638015,-153.0,0.00026438,2]
[321721794,1712460638025,-202.6555302,0.00026438,2]
[321721795,1712460638035,-202.6555302,0.00026438,2]
[321721796,1712460638045,-153.0,0.00026438,2]
[321721797,1712460638055,-221.9766468,0.00026438,2]
[321721798,1712460638064,-153.0,0.00026438,2]
[321721799,1712460638074,-153.0,0.00026438,2]
[321721800,1712460638085,-153.0,0.00026478,2]
[321721801,1712460638095,-1136.88054618,0.00026704,2]
[321721802,1712460638218,-153.0,0.000268,2]
[321721803,1712460638230,-1011.03342352,0.00027,2]
[321721818,1712460664610,156.70600507,0.00020914,2]
[321721821,1712461161755,867.74240916,0.00020914,2]
[321721822,1712461205999,15424.9039167,0.00020914,2]
[321722040,1712461839976,334.8598498,0.000189,2]
[321722043,1712461840242,-8956.51569325,0.00023356,2]
[321722044,1712461840251,-2120.0697231,0.00023357,2]
[321722045,1712461840260,-1086.62260773,0.00023357,2]
[321722046,1712461840270,-1864.9266484,0.00023357,2]
[321722047,1712461840281,-300.0,0.00023358,2]
[321722048,1712461840290,-300.0,0.00023358,2]
[321722049,1712461840299,-783.2219105,0.00023366,2]
[321722050,1712461840309,-7406.2579165,0.00023866,2]
[321722051,1712461840319,-334.8598498,0.000239,2]
[321722052,1712461840329,-455.38550242,0.00024397,2]
[321722053,1712461840339,-178.21945668,0.00024497,2]
[321722054,1712461840349,-151.0,0.00024597,2]
[321722055,1712461840359,-151.0,0.00024597,2]
[321722056,1712461840370,-914.030391,0.00024597,2]
[321722057,1712461840381,-914.030391,0.00024597,2]
[321722058,1712461840392,-180.434561,0.00024597,2]
[321722059,1712461840401,-258.513573,0.00024597,2]
[321722060,1712461840411,-500.0,0.00024597,2]
[321722061,1712461840420,-500.0,0.00024597,2]
[321722062,1712461840430,-500.0,0.00024597,2]
[321722063,1712461840440,-160.189686,0.00024597,2]
[321722064,1712461840448,-500.0,0.00024597,2]
[321722065,1712461840457,-72.6043106,0.00024597,2]
[321722104,1712461951295,5407.95351198,0.00031943,60]
[321722108,1712461965261,56832.0,0.00030192,60]
[321722110,1712461981595,34527.68255245,0.00028192,60]
[321722298,1712462565133,5472.31744755,0.00028,120]
[321722500,1712463038799,-300.0,0.00024349,2]
[321722501,1712463038808,-300.0,0.00024349,2]
[321722502,1712463038817,-229.7818463,0.00024349,2]
[321722526,1712463040506,-8726.73384695,0.00024349,2]
[321722527,1712463040516,-1035.70228906,0.0002435,2]
[321722528,1712463040525,-178.21945667,0.00024496,2]
[321722529,1712463040535,-3071.57850406,0.0002459,2]
[321722530,1712463040545,-171.3714019,0.00024595,2]
[321722531,1712463040554,-500.0,0.00024595,2]
[321722532,1712463040564,-1686.53786721,0.00024596,2]
[321722533,1712463040573,-1892.14070118,0.00024596,2]
[321722534,1712463040582,-1065.48483672,0.00024596,2]
[321722535,1712463040592,-500.0,0.00024596,2]
[321722536,1712463040601,-502.2806892,0.00024596,2]
[321722537,1712463040610,-500.0,0.00024596,2]
[321722538,1712463040619,-151.0,0.00024596,2]
[321722539,1712463040628,-151.0,0.00024596,2]
[321722540,1712463040638,-500.0,0.00024596,2]
[321722541,1712463040647,-500.0,0.00024596,2]
[321722542,1712463040656,-500.0,0.00024596,2]
[321722543,1712463040675,-500.0,0.00024596,2]
[321722544,1712463040685,-500.0,0.00024596,2]
[321722545,1712463040695,-500.0,0.00024596,2]
[321722546,1712463040704,-413.19060998,0.00024596,2]
[321722556,1712463043421,-86.80939002,0.00024596,2]
[321722557,1712463043431,-870.328591,0.00024596,2]
[321722558,1712463043441,-870.328591,0.00024596,2]
[321722559,1712463043451,-870.328591,0.00024596,2]
[321722560,1712463043461,-870.328591,0.00024596,2]
[321722561,1712463043470,-870.328591,0.00024596,2]
[321722562,1712463043480,-870.328591,0.00024596,2]
[321722563,1712463043489,-870.328591,0.00024596,2]
[321722564,1712463043499,-870.328591,0.00024596,2]
[321722565,1712463043509,-500.0,0.00024596,2]
[321722566,1712463043518,-2633.62,0.00024596,2]
[321722567,1712463043527,-444.54349874,0.00024596,2]
[321722568,1712463043539,-69.2277631,0.00024596,2]
[321722569,1712463043549,-387.9,0.00024596,2]
[321722570,1712463043559,-500.0,0.00024596,2]
[321722571,1712463043568,-690.19,0.00024596,2]
[321722572,1712463043577,-500.0,0.00024596,2]
[321722573,1712463043586,-7.56309367,0.00024596,2]
[321722647,1712464232489,-469.76688052,0.00023349,2]
[321722648,1712464232498,-2842.08311948,0.0002335,2]
[321722649,1712464232509,-294.42526884,0.0002335,2]
[321722650,1712464232521,-1616.30636342,0.00023351,2]
[321722651,1712464232531,-300.0,0.00023351,2]
[321722652,1712464232540,-524.44229482,0.00023352,2]
[321722653,1712464232549,-158.67684988,0.00023352,2]
[321722654,1712464232563,-249.22424003,0.00023352,2]
[321722655,1712464232572,-1669.8078515,0.00023352,2]
[321722656,1712464232581,-630.32646241,0.00023352,2]
[321722657,1712464232591,-300.0,0.00023352,2]
[321722658,1712464232599,-2120.0697231,0.00023353,2]
[321722659,1712464232610,-47573.99953024,0.00023353,2]
[321722660,1712464232619,-179.27377637,0.00023353,2]
[321722661,1712464232629,-197.06839396,0.00023353,2]
[321722662,1712464232639,-263.0238591,0.00023353,2]
[321722663,1712464232648,-500.0,0.00023353,2]
[321722664,1712464232657,-476.33101698,0.00023353,2]
[321722665,1712464232667,-2181.01523911,0.00023354,2]
[321722673,1712464238486,-1455.195,0.00023354,2]
[321722740,1712464246624,-320.43722872,0.00023353,2]
[321722741,1712464246632,-25.91277128,0.00023353,2]
[321722840,1712464639039,-150.0,0.00021253,2]
[321722841,1712464639068,-300.0,0.00023351,2]
[321722842,1712464639095,-300.0,0.00023351,2]
[321722843,1712464639122,-500.0,0.00023352,2]
[321722844,1712464639148,-8956.51569325,0.00023352,2]
[321722845,1712464639175,-500.0,0.00023352,2]
[321722846,1712464639204,-663.51,0.00023352,2]
[321722847,1712464639230,-391.99920663,0.00023353,2]
[321722877,1712464714979,-500.0,0.00023352,2]
[321722878,1712464715007,-584.34,0.00023352,2]
[321722879,1712464715034,-813.51,0.00023352,2]
[321722887,1712464913573,151.00604024,0.00025369,30]
[321722888,1712464913645,151.00604024,0.00024861,120]
[321722902,1712465300266,151.00755038,0.0002557,30]
[321723046,1712465443922,-766.97653919,0.00023251,2]
[321723047,1712465443931,-160.03989228,0.00023252,2]
[321723048,1712465443941,-300.0,0.00023351,2]
[321723049,1712465443950,-300.0,0.00023351,2]
[321723050,1712465443959,-3673.40894066,0.00023352,2]
[321723111,1712466631848,-2440.45111088,0.00022371,2]
[321723113,1712466637851,-747.57612295,0.00022371,2]
[321723217,1712466642935,-640.79849235,0.00022371,2]
[321723225,1712466642994,-3508.22762957,0.00022371,2]
[321723263,1712466646013,-1619.4623375,0.00022371,2]
[321723264,1712466646022,-2120.0697231,0.00022372,2]
[321723265,1712466646031,-300.0,0.00022372,2]
[321723266,1712466646040,-300.0,0.00022372,2]
[321723267,1712466646049,-979.10946469,0.00022391,2]
[321723268,1712466646058,-1623.42118454,0.00023342,2]
[321723269,1712466646067,-196.73315461,0.00023449,2]
[321723270,1712466646076,-637.95547323,0.0002351,2]
[321723271,1712466646085,-516.34664324,0.00023824,2]
[321723272,1712466646094,-500.0,0.00023824,2]
[321723273,1712466646103,-174.10953988,0.000239,2]
[321723274,1712466646112,-1969.7469522,0.000239,2]
[321723275,1712466646121,-500.0,0.00023999,2]
[321723276,1712466646130,-500.0,0.00023999,2]
[321723277,1712466646140,-221.9786003,0.00024,2]
[321723278,1712466646150,-500.0,0.00024,2]
[321723279,1712466646160,-500.0,0.00024,2]
[321723280,1712466646169,-500.0,0.00024,2]
[321723281,1712466646178,-151.0,0.00024,2]
[321723282,1712466646187,-484.22442831,0.00024,2]
[321723283,1712466646197,-525.14943667,0.00024,2]
[321723284,1712466646206,-500.0,0.00024,2]
[321723285,1712466646215,-500.0,0.00024,2]
[321723286,1712466646224,-500.0,0.00024,2]
[321723287,1712466646234,-510.18,0.00024,2]
[321723288,1712466646243,-500.0,0.00024,2]
[321723289,1712466646252,-500.0,0.00024,2]
[321723290,1712466646262,-500.0,0.00024,2]
[321723291,1712466646271,-500.0,0.00024,2]
[321723292,1712466646290,-500.0,0.00024,2]
[321723293,1712466646301,-665.300869,0.00024,2]
[321723294,1712466646310,-500.0,0.00024,2]
[321723295,1712466646319,-665.300869,0.00024,2]
[321723296,1712466646329,-500.0,0.00024,2]
[321723297,1712466646342,-513.57429835,0.00024,2]
[321723298,1712466646394,-464.07674871,0.00024,2]
[321723299,1712466646405,-500.0,0.00024,2]
[321723300,1712466646415,-2523.89,0.00024,2]
[321723301,1712466646424,-500.0,0.00024,2]
[321723302,1712466646434,-2012.72,0.00024,2]
[321723303,1712466646443,-661.43,0.00024,2]
[321723304,1712466646453,-500.0,0.00024,2]
[321723305,1712466646462,-500.0,0.00024,2]
[321723306,1712466646471,-601.94,0.00024,2]
[321723307,1712466646481,-500.0,0.00024,2]
[321723308,1712466646490,-500.0,0.00024,2]
[321723309,1712466646499,-151.0,0.00024,2]
[321723310,1712466646509,-151.0,0.00024,2]
[321723311,1712466646518,-500.0,0.00024,2]
[321723312,1712466646528,-152.471712,0.00024,2]
[321723313,1712466646538,-663.51,0.00024,2]
[321723314,1712466646547,-500.0,0.00024,2]
[321723315,1712466646557,-611.53625449,0.00024,2]
[321723316,1712466646567,-1251.97,0.00024,2]
[321723317,1712466646576,-151.0,0.00024,2]
[321723318,1712466646585,-151.0,0.00024,2]
[321723319,1712466646595,-151.0,0.00024,2]
[321723320,1712466646605,-151.0,0.00024,2]
[321723321,1712466646614,-500.0,0.00024,2]
[321723322,1712466646624,-568.79,0.00024,2]
[321723323,1712466646633,-500.0,0.00024,2]
[321723324,1712466646643,-731.65,0.00024,2]
[321723325,1712466646652,-500.0,0.00024,2]
[321723326,1712466646663,-151.0,0.00024,2]
[321723327,1712466646672,-151.0,0.00024,2]
[321723328,1712466646682,-151.0,0.00024,2]
[321723329,1712466646691,-192.617096,0.00024,2]
[321723330,1712466646700,-500.0,0.00024,2]
[321723331,1712466646710,-151.0,0.00024001,2]
[321723332,1712466646719,-151.0,0.00024001,2]
[321723333,1712466646729,-500.0,0.00024001,2]
[321723334,1712466646739,-500.0,0.00024001,2]
[321723335,1712466646748,-151.0,0.00024001,2]
[321723336,1712466646758,-166.675966,0.00024001,2]
[321723337,1712466646768,-665.300869,0.00024001,2]
[321723338,1712466646777,-665.300869,0.00024001,2]
[321723339,1712466646787,-151.0,0.00024002,2]
[321723340,1712466646797,-151.0,0.00024098,2]
[321723341,1712466646806,-502.18947815,0.00024098,2]
[321723342,1712466646816,-665.300869,0.00024098,2]
[321723343,1712466646825,-665.300869,0.00024098,2]
[321723344,1712466646835,-281.175745,0.00024098,2]
[321723345,1712466646845,-151.0,0.00024098,2]
[321723346,1712466646854,-151.0,0.00024098,2]
[321723347,1712466646864,-151.0,0.00024098,2]
[321723348,1712466646874,-418.42757871,0.00024273,2]
[321723349,1712466646883,-500.0,0.00024273,2]
[321723350,1712466646893,-500.0,0.00024274,2]
[321723351,1712466646902,-508.82781638,0.00024274,2]
[321723352,1712466646913,-500.0,0.00024274,2]
[321723353,1712466646922,-500.0,0.00024274,2]
[321723354,1712466646932,-500.0,0.00024274,2]
[321723355,1712466646941,-665.300869,0.00024274,2]
[321723356,1712466646951,-500.0,0.00024274,2]
[321723357,1712466646961,-665.300869,0.00024274,2]
[321723358,1712466646970,-665.300869,0.00024274,2]
[321723359,1712466646980,-665.300869,0.00024274,2]
[321723360,1712466646989,-665.300869,0.00024274,2]
[321723361,1712466646999,-665.300869,0.00024274,2]
[321723362,1712466647008,-500.0,0.00024274,2]
[321723363,1712466647018,-2523.89,0.00024274,2]
[321723364,1712466647027,-500.0,0.00024274,2]
[321723365,1712466647036,-2012.72,0.00024274,2]
[321723366,1712466647046,-661.43,0.00024274,2]
[321723367,1712466647055,-419.56,0.00024274,2]
[321723368,1712466647065,-500.0,0.00024274,2]
[321723369,1712466647074,-601.94,0.00024274,2]
[321723370,1712466647083,-409.37900707,0.00024274,2]
[321723371,1712466647093,-500.0,0.00024274,2]
[321723372,1712466647102,-500.0,0.00024274,2]
[321723373,1712466647113,-663.51,0.00024274,2]
[321723374,1712466647122,-500.0,0.00024274,2]
[321723375,1712466647131,-1251.97,0.00024274,2]
[321723376,1712466647141,-151.0,0.00024274,2]
[321723377,1712466647155,-151.0,0.00024274,2]
[321723378,1712466647167,-151.0,0.00024274,2]
[321723379,1712466647177,-151.0,0.00024274,2]
[321723380,1712466647187,-151.0,0.00024274,2]
[321723381,1712466647198,-151.0,0.00024274,2]
[321723382,1712466647208,-151.0,0.00024274,2]
[321723383,1712466647218,-300.125517,0.00024274,2]
[321723384,1712466647228,-500.0,0.00024274,2]
[321723385,1712466647240,-293.9036481,0.00024274,2]
[321723521,1712467832026,-868.08679661,0.00022072,2]
[321723523,1712467832036,-1086.62260773,0.00022073,2]
[321723525,1712467832045,-327.77273436,0.00022073,2]
[321723526,1712467832054,-418.61885829,0.00022074,2]
[321723527,1712467832063,-5095.04600842,0.00022133,2]
[321723572,1712467838059,-4415.82915336,0.00022071,2]
[321723573,1712467838074,-1147.48869311,0.00022071,2]
[321723574,1712467838083,-3861.46968483,0.00022133,2]
[321723575,1712467838093,-211.28627391,0.00022134,2]
[321723576,1712467838103,-300.0,0.00022134,2]
[321723577,1712467838113,-300.0,0.00022134,2]
[321723578,1712467838123,-1723.43593322,0.00022139,2]
[321723579,1712467838132,-393.98633838,0.00022174,2]
[321723580,1712467838142,-1075.02898141,0.00023877,2]
[321723581,1712467838151,-162.40468191,0.00023997,2]
[321723582,1712467838160,-1306.43290206,0.00023997,2]
[321723583,1712467838171,-181.93709477,0.00023997,2]
[321723584,1712467838180,-303.57593598,0.00023997,2]
[321723585,1712467838190,-1551.89048382,0.00023997,2]
[321723586,1712467838199,-155.31191086,0.00023997,2]
[321723587,1712467838208,-2590.90520085,0.00023997,2]
[321723588,1712467838218,-2145.89587653,0.00023998,2]
[321723589,1712467838230,-621.17403756,0.00023998,2]
[321723590,1712467838249,-702.24762342,0.00023998,2]
[321723591,1712467838258,-500.0,0.00023998,2]
[321723592,1712467838267,-608.21,0.00023998,2]
[321723593,1712467838277,-532.84,0.00023998,2]
[321723594,1712467838286,-500.0,0.00023998,2]
[321723595,1712467838295,-500.0,0.00023998,2]
[321723596,1712467838304,-534.86561096,0.00023998,2]
[321723597,1712467838314,-500.0,0.00023999,2]
[321723598,1712467838323,-500.33131698,0.00024,2]
[321723599,1712467838332,-420.0,0.00024049,2]
[321723600,1712467838341,-500.0,0.00024272,2]
[321723601,1712467838350,-500.0,0.00024272,2]
[321723602,1712467838359,-500.0,0.00024272,2]
[321723603,1712467838368,-2313.56,0.00024272,2]
[321723604,1712467838377,-606.31,0.00024272,2]
[321723605,1712467838386,-450.67161157,0.00024272,2]
[321723606,1712467838395,-500.0,0.00024272,2]
[321723607,1712467838405,-344.81559891,0.00024272,2]
[321723608,1712467838414,-608.21,0.00024272,2]
[321723609,1712467838422,-500.0,0.00024272,2]
[321723610,1712467838431,-1147.64,0.00024272,2]
[321723611,1712467838440,-551.78,0.00024272,2]
[321723612,1712467838449,-500.0,0.00024272,2]
[321723613,1712467838459,-532.84,0.00024272,2]
[321723614,1712467838470,-500.0,0.00024272,2]
[321723615,1712467838481,-438.38,0.00024272,2]
[321723616,1712467838490,-640.13914279,0.00024272,2]
[321723686,1712467843188,-2120.0697231,0.00022132,2]
[321723687,1712467843197,-1747.36542865,0.00023998,2]
[321723759,1712468314750,151.0,0.000274,17]
[321723769,1712468396897,-879.9302769,0.00022158,2]
[321723770,1712468396912,-1240.1394462,0.00022158,2]
[321723771,1712468396921,-868.08679661,0.00022159,2]
[321723772,1712468396931,-11.84348029,0.00022172,2]
[321723786,1712468768834,258.70973215,0.00020059,2]
[321723811,1712469032327,-868.08679661,0.00023451,2]
[321723812,1712469032336,-620.89777366,0.00023452,2]
[321723813,1712469032345,-1048.24103294,0.0002427,2]
[321723814,1712469032354,-300.0,0.0002427,2]
[321723815,1712469032363,-300.0,0.0002427,2]
[321723816,1712469032372,-329.57644596,0.00024271,2]
[321723817,1712469032381,-155.64856261,0.00024271,2]
[321723818,1712469032390,-500.0,0.00024271,2]
[321723819,1712469032399,-500.0,0.00024271,2]
[321723821,1712469032408,-500.0,0.00024271,2]
[321723822,1712469032417,-500.0,0.00024271,2]
[321723823,1712469032426,-500.0,0.00024271,2]
[321723825,1712469032435,-330.96977168,0.00024383,2]
[321723826,1712469032444,-992.81040157,0.00024383,2]
[321723827,1712469032453,-561.58531539,0.00024384,2]
[321723828,1712469032462,-366.29150096,0.00024445,2]
[321723829,1712469032471,-174.10953986,0.00024445,2]
[321723830,1712469032479,-153.0,0.000245,2]
[321723831,1712469032488,-370.55743783,0.00024544,2]
[321723832,1712469032498,-583.77893554,0.00024545,2]
[321723833,1712469032507,-831.81365593,0.00024545,2]
[321723834,1712469032516,-284.26068043,0.00024545,2]
[321723835,1712469032525,-500.0,0.00024545,2]
[321723836,1712469032534,-500.0,0.00024545,2]
[321723837,1712469032543,-500.0,0.00024545,2]
[321723838,1712469032553,-500.0,0.00024545,2]
[321723839,1712469032562,-155.49606589,0.00024545,2]
[321723840,1712469032571,-500.0,0.00024545,2]
[321723841,1712469032580,-500.0,0.00024545,2]
[321723842,1712469032589,-500.0,0.00024545,2]
[321723843,1712469032598,-982.83,0.00024545,2]
[321723844,1712469032607,-500.0,0.00024545,2]
[321723845,1712469032616,-502.46545256,0.00024545,2]
[321723846,1712469032626,-581.05,0.00024545,2]
[321723847,1712469032634,-528.79,0.00024545,2]
[321723848,1712469032644,-500.0,0.00024545,2]
[321723849,1712469032653,-2730.09,0.00024545,2]
[321723850,1712469032663,-500.0,0.00024545,2]
[321723851,1712469032673,-1099.82,0.00024545,2]
[321723852,1712469032683,-500.0,0.00024545,2]
[321723853,1712469032693,-510.91601065,0.00024545,2]
[321723854,1712469032703,-500.0,0.00024545,2]
[321723855,1712469032712,-972.67,0.00024545,2]
[321723856,1712469032721,-507.48,0.00024545,2]
[321723857,1712469032731,-500.0,0.00024545,2]
[321723858,1712469032740,-554.30344299,0.00024546,2]
[321723859,1712469032749,-171.99052288,0.00024546,2]
[321723860,1712469032759,-155.21951799,0.00024546,2]
[321723861,1712469032776,-330.31582001,0.00024546,2]
[321723862,1712469032788,-266.120348,0.00024546,2]
[321723863,1712469032802,-266.120348,0.00024546,2]
[321723864,1712469032813,-190.44750502,0.00024596,2]
[321723865,1712469032827,-605.11614046,0.00024599,2]
[321723866,1712469032840,-500.0,0.00024599,2]
[321723867,1712469032852,-500.49231281,0.00024599,2]
[321723868,1712469032863,-772.42,0.00024599,2]
[321723869,1712469032873,-500.0,0.00024599,2]
[321723870,1712469032883,-491.09259353,0.000246,2]
[321723871,1712469032893,-620.04488868,0.00024624,2]
[321723872,1712469032908,-380.0,0.00024658,2]
[321723873,1712469032919,-153.0,0.000247,2]
[321723874,1712469032932,-153.0,0.000247,2]
[321723875,1712469032944,-153.0,0.000247,2]
[321723876,1712469032956,-153.0,0.000247,2]
[321723877,1712469032967,-500.0,0.00024818,2]
[321723878,1712469032978,-500.0,0.00024819,2]
[321723879,1712469032990,-458.47,0.00024819,2]
[321723880,1712469033000,-500.0,0.00024819,2]
[321723881,1712469033011,-500.0,0.00024819,2]
[321723882,1712469033022,-383.6,0.00024819,2]
[321723883,1712469033034,-313.75,0.00024819,2]
[321723884,1712469033044,-266.120348,0.00024819,2]
[321723885,1712469033055,-266.120348,0.00024819,2]
[321723886,1712469033064,-317.58,0.00024819,2]
[321723887,1712469033075,-982.83,0.00024819,2]
[321723888,1712469033086,-426.49,0.00024819,2]
[321723889,1712469033098,-581.05,0.00024819,2]
[321723890,1712469033108,-528.79,0.00024819,2]
[321723891,1712469033120,-500.0,0.00024819,2]
[321723892,1712469033131,-2730.09,0.00024819,2]
[321723893,1712469033142,-500.0,0.00024819,2]
[321723894,1712469033155,-1099.82,0.00024819,2]
[321723895,1712469033166,-500.0,0.00024819,2]
[321723896,1712469033176,-422.89,0.00024819,2]
[321723897,1712469033187,-972.67,0.00024819,2]
[321723898,1712469033199,-151.0,0.00024819,2]
[321723899,1712469033210,-151.0,0.00024819,2]
[321723900,1712469033222,-507.48,0.00024819,2]
[321723901,1712469033231,-357.63999959,0.00024819,2]
[321723902,1712469033241,-151.0,0.00024819,2]
[321723903,1712469033251,-151.0,0.00024819,2]
[321723904,1712469033261,-266.120348,0.0002482,2]
[321723905,1712469033271,-266.120348,0.0002482,2]
[321723906,1712469033284,-151.0,0.0002482,2]
[321723907,1712469033295,-772.42,0.00024873,2]
[321723908,1712469033306,-500.0,0.00024873,2]
[321723909,1712469033318,-5000.0,0.00024935,2]
[321723910,1712469033330,-266.120348,0.00024935,2]